[Event "*** Titled Tuesday Blitz"]
[Site "Chess.com"]
[Date "2020.11.03"]
[Round "11"]
[White "FMJoseHerrera"]
[Black "ChristopherYoo"]
[Result "1-0"]
[WhiteElo "2594"]
[BlackElo "2817"]
[TimeControl "180+1"]
[EndTime "12:10:14 PST"]
[Termination "FMJoseHerrera won by resignation"]

1. Nf3 {[%clk 0:02:40.5]} 1... b6 {[%clk 0:02:51.8]} 2. g3 {[%clk 0:02:40.1]}
2... Bb7 {[%clk 0:02:51.8]} 3. Bg2 {[%clk 0:02:40.5]} 3... g6 {[%clk 0:02:52.3]}
4. d3 {[%clk 0:02:41]} 4... Bg7 {[%clk 0:02:52.4]} 5. Nc3 {[%clk 0:02:41.6]}
5... d5 {[%clk 0:02:47.9]} 6. h4 {[%clk 0:02:41.6]} 6... h6 {[%clk 0:02:47.1]}
7. e4 {[%clk 0:02:40]} 7... Bxc3+ {[%clk 0:02:41.4]} 8. bxc3 {[%clk 0:02:39.1]}
8... dxe4 {[%clk 0:02:41.9]} 9. Nd2 {[%clk 0:02:38.2]} 9... Nf6 {[%clk
0:02:39.2]} 10. O-O {[%clk 0:02:36.4]} 10... Nbd7 {[%clk 0:02:31.4]} 11. Ba3
{[%clk 0:02:32]} 11... O-O {[%clk 0:02:27.6]} 12. Re1 {[%clk 0:02:27.9]} 12...
c5 {[%clk 0:02:27.1]} 13. Nxe4 {[%clk 0:02:27.3]} 13... Nxe4 {[%clk 0:02:26.7]}
14. Bxe4 {[%clk 0:02:28.2]} 14... Bxe4 {[%clk 0:02:27]} 15. Rxe4 {[%clk
0:02:27.5]} 15... Nf6 {[%clk 0:02:27.3]} 16. Re2 {[%clk 0:02:26]} 16... Qd7
{[%clk 0:02:27.1]} 17. Bc1 {[%clk 0:02:25.3]} 17... Kh7 {[%clk 0:02:19.7]} 18.
Qd2 {[%clk 0:02:24.9]} 18... h5 {[%clk 0:01:57.5]} 19. a4 {[%clk 0:02:22.6]}
19... Rad8 {[%clk 0:01:51.4]} 20. a5 {[%clk 0:02:22.2]} 20... c4 {[%clk
0:01:16.3]} 21. d4 {[%clk 0:02:15.8]} 21... Qh3 {[%clk 0:01:15.9]} 22. Rxe7
{[%clk 0:02:11.3]} 22... Ng4 {[%clk 0:01:11.8]} 23. f3 {[%clk 0:02:09.9]} 23...
Qxg3+ {[%clk 0:00:33.7]} 24. Qg2 {[%clk 0:02:09.8]} 24... Qxh4 {[%clk
0:00:33.8]} 25. Re4 {[%clk 0:02:06.7]} 25... f5 {[%clk 0:00:31.6]} 26. Re2
{[%clk 0:02:02.6]} 26... Rde8 {[%clk 0:00:25.7]} 27. fxg4 {[%clk 0:02:00.9]}
27... Rxe2 {[%clk 0:00:22.8]} 28. Qxe2 {[%clk 0:02:01.8]} 28... Qg3+ {[%clk
0:00:21.4]} 29. Qg2 {[%clk 0:02:00.8]} 29... Qe1+ {[%clk 0:00:21.2]} 30. Kh2
{[%clk 0:02:00.3]} 30... fxg4 {[%clk 0:00:15.8]} 31. axb6 {[%clk 0:01:55.6]}
31... Qh4+ {[%clk 0:00:08.8]} 32. Kg1 {[%clk 0:01:56]} 32... Qe1+ {[%clk
0:00:08.9]} 33. Kh2 {[%clk 0:01:56.5]} 33... Rf2 {[%clk 0:00:02.4]} 34. Rxa7+
{[%clk 0:01:52.5]} 34... Kh8 {[%clk 0:00:02.8]} 35. b7 {[%clk 0:01:36.7]} 35...
g3+ {[%clk 0:00:02.4]} 36. Kxg3 {[%clk 0:01:34.6]} 36... Rxg2+ {[%clk
0:00:01.9]} 37. Kxg2 {[%clk 0:01:35.5]} 37... Qe2+ {[%clk 0:00:02]} 38. Kg3
{[%clk 0:01:35.1]} 38... Qe1+ {[%clk 0:00:02.4]} 39. Kf4 {[%clk 0:01:34.7]}
39... Qxc1+ {[%clk 0:00:02.2]} 40. Ke5 {[%clk 0:01:35.2]} 40... Qg5+ {[%clk
0:00:01.7]} 41. Kd6 {[%clk 0:01:35.1]} 41... Qf6+ {[%clk 0:00:01.9]} 42. Kd5
{[%clk 0:01:35.6]} 42... Qf5+ {[%clk 0:00:01.7]} 43. Kxc4 {[%clk 0:01:35.5]}
43... Qe6+ {[%clk 0:00:01.9]} 44. Kd3 {[%clk 0:01:35.9]} 44... Qf5+ {[%clk
0:00:02.1]} 45. Kd2 {[%clk 0:01:35.7]} 45... Qf4+ {[%clk 0:00:02.3]} 46. Kd1
{[%clk 0:01:35.8]} 46... Qf3+ {[%clk 0:00:02.3]} 47. Kc1 {[%clk 0:01:35.4]}
47... Qf1+ {[%clk 0:00:02.9]} 48. Kb2 {[%clk 0:01:31.5]} 48... Qb5+ {[%clk
0:00:03.1]} 49. Ka1 {[%clk 0:01:30.2]} 49... Qf1+ {[%clk 0:00:02.6]} 50. Ka2
{[%clk 0:01:22.7]} 50... Qc4+ {[%clk 0:00:02.4]} 51. Kb2 {[%clk 0:01:19.7]}
51... Qb5+ {[%clk 0:00:02.7]} 52. Ka3 {[%clk 0:01:17.8]} 52... Qb1 {[%clk
0:00:02.4]} 53. Ra8+ {[%clk 0:01:14.8]} 53... Kg7 {[%clk 0:00:02.6]} 54. b8=Q
{[%clk 0:01:15.7]} 54... Qa1+ {[%clk 0:00:03.1]} 55. Kb3 {[%clk 0:01:16.1]}
55... Qb1+ {[%clk 0:00:03.2]} 56. Kc4 {[%clk 0:01:16.7]} 56... Qf1+ {[%clk
0:00:03.5]} 57. Kc5 {[%clk 0:01:16.4]} 57... Qf5+ {[%clk 0:00:03.6]} 58. Qe5+
{[%clk 0:01:16.7]} 1-0

[Event "*** Titled Tuesday Blitz"]
[Site "Chess.com"]
[Date "2020.11.03"]
[Round "11"]
[White "Firouzja2003"]
[Black "jefferyx"]
[Result "0-1"]
[WhiteElo "3061"]
[BlackElo "2964"]
[TimeControl "180+1"]
[EndTime "12:10:15 PST"]
[Termination "jefferyx won by resignation"]

1. g3 {[%clk 0:03:00.9]} 1... c5 {[%clk 0:02:54.5]} 2. e4 {[%clk 0:02:59.5]}
2... Nc6 {[%clk 0:02:54.5]} 3. Nc3 {[%clk 0:02:59]} 3... g6 {[%clk 0:02:54.9]}
4. Bg2 {[%clk 0:02:58.8]} 4... Bg7 {[%clk 0:02:55.3]} 5. Nge2 {[%clk 0:02:58.8]}
5... e6 {[%clk 0:02:53.3]} 6. O-O {[%clk 0:02:58.4]} 6... Nge7 {[%clk
0:02:53.6]} 7. d3 {[%clk 0:02:58.6]} 7... O-O {[%clk 0:02:54]} 8. Be3 {[%clk
0:02:58]} 8... Nd4 {[%clk 0:02:24.8]} 9. Qd2 {[%clk 0:02:56.8]} 9... d5 {[%clk
0:02:22.1]} 10. Rad1 {[%clk 0:02:45.2]} 10... b6 {[%clk 0:02:08.1]} 11. exd5
{[%clk 0:02:28.3]} 11... exd5 {[%clk 0:02:07.1]} 12. Bxd4 {[%clk 0:02:28.4]}
12... cxd4 {[%clk 0:02:04.5]} 13. Nb5 {[%clk 0:02:28.7]} 13... Nf5 {[%clk
0:01:55.7]} 14. Qb4 {[%clk 0:02:14.5]} 14... a5 {[%clk 0:01:46.5]} 15. Qb3
{[%clk 0:02:14.5]} 15... Bb7 {[%clk 0:01:23.2]} 16. a4 {[%clk 0:02:07.7]} 16...
Rc8 {[%clk 0:01:20.2]} 17. Nf4 {[%clk 0:02:07]} 17... Rc5 {[%clk 0:01:19.6]} 18.
Rfe1 {[%clk 0:02:05.2]} 18... Qd7 {[%clk 0:01:11.2]} 19. Re2 {[%clk 0:01:53.3]}
19... Bh6 {[%clk 0:01:08.1]} 20. Nh3 {[%clk 0:01:30.7]} 20... Bc6 {[%clk
0:01:07.9]} 21. Rde1 {[%clk 0:01:17.9]} 21... Bxb5 {[%clk 0:00:58.8]} 22. axb5
{[%clk 0:01:18.8]} 22... Qxb5 {[%clk 0:00:59.7]} 23. Qxb5 {[%clk 0:01:15.8]}
23... Rxb5 {[%clk 0:01:00.6]} 24. b3 {[%clk 0:01:16.2]} 24... Rc8 {[%clk
0:00:57.5]} 25. Re8+ {[%clk 0:01:07.7]} 25... Rxe8 {[%clk 0:00:55.1]} 26. Rxe8+
{[%clk 0:01:08.6]} 26... Bf8 {[%clk 0:00:45.4]} 27. Nf4 {[%clk 0:01:02.1]} 27...
Ne7 {[%clk 0:00:43]} 28. Rd8 {[%clk 0:00:54.5]} 28... Rc5 {[%clk 0:00:43.2]} 29.
Nxd5 {[%clk 0:00:49.2]} 29... Nxd5 {[%clk 0:00:43.5]} 30. Bxd5 {[%clk
0:00:49.8]} 30... Rxc2 {[%clk 0:00:30.7]} 31. Rd7 {[%clk 0:00:49.9]} 31... b5
{[%clk 0:00:18.6]} 32. Bxf7+ {[%clk 0:00:38.8]} 32... Kh8 {[%clk 0:00:18.8]} 33.
Rb7 {[%clk 0:00:26.6]} 33... a4 {[%clk 0:00:17.4]} 34. Rxb5 {[%clk 0:00:11.5]}
34... a3 {[%clk 0:00:17.4]} 35. b4 {[%clk 0:00:11.7]} 35... a2 {[%clk
0:00:15.6]} 36. Ra5 {[%clk 0:00:10.9]} 36... Rc1+ {[%clk 0:00:15.5]} 0-1

[Event "*** Titled Tuesday Blitz"]
[Site "Chess.com"]
[Date "2020.11.03"]
[Round "11"]
[White "snowlord"]
[Black "esskeettit"]
[Result "1-0"]
[WhiteElo "2691"]
[BlackElo "2448"]
[TimeControl "180+1"]
[EndTime "12:10:16 PST"]
[Termination "snowlord won by resignation"]

1. d4 {[%clk 0:03:00.9]} 1... Nf6 {[%clk 0:02:58.6]} 2. c4 {[%clk 0:03:00.6]}
2... e6 {[%clk 0:02:59]} 3. Nf3 {[%clk 0:03:00.8]} 3... d5 {[%clk 0:02:58.7]} 4.
g3 {[%clk 0:03:01.3]} 4... Be7 {[%clk 0:02:58.8]} 5. Bg2 {[%clk 0:03:01.5]} 5...
O-O {[%clk 0:02:59.2]} 6. Nc3 {[%clk 0:03:02]} 6... c6 {[%clk 0:02:59.3]} 7. O-O
{[%clk 0:03:01.2]} 7... b6 {[%clk 0:02:59.6]} 8. Qd3 {[%clk 0:03:00.6]} 8... Bb7
{[%clk 0:02:57.3]} 9. e4 {[%clk 0:02:59.6]} 9... a5 {[%clk 0:02:47.7]} 10. b3
{[%clk 0:02:57.2]} 10... Na6 {[%clk 0:02:40.6]} 11. e5 {[%clk 0:02:56.7]} 11...
Nd7 {[%clk 0:02:40.1]} 12. cxd5 {[%clk 0:02:56.7]} 12... Nb4 {[%clk 0:02:28.8]}
13. Qd1 {[%clk 0:02:56.6]} 13... Nxd5 {[%clk 0:02:27.9]} 14. Nxd5 {[%clk
0:02:56.8]} 14... cxd5 {[%clk 0:02:28]} 15. h4 {[%clk 0:02:53.3]} 15... b5
{[%clk 0:02:25.6]} 16. a3 {[%clk 0:02:53]} 16... Qb6 {[%clk 0:02:24.9]} 17. Bg5
{[%clk 0:02:52]} 17... Bxg5 {[%clk 0:02:19.7]} 18. hxg5 {[%clk 0:02:50.9]} 18...
Rfc8 {[%clk 0:02:17.3]} 19. Qd2 {[%clk 0:02:50.7]} 19... Rc7 {[%clk 0:02:10.3]}
20. b4 {[%clk 0:02:46.6]} 20... a4 {[%clk 0:02:06.6]} 21. Rfc1 {[%clk
0:02:40.4]} 21... Rac8 {[%clk 0:02:02.4]} 22. Bf1 {[%clk 0:02:40.8]} 22... Rxc1
{[%clk 0:01:29]} 23. Rxc1 {[%clk 0:02:41.7]} 23... Rxc1 {[%clk 0:01:29.4]} 24.
Qxc1 {[%clk 0:02:42.6]} 24... Qc6 {[%clk 0:01:29.9]} 25. Qb1 {[%clk 0:02:34.6]}
25... Qc3 {[%clk 0:01:01.1]} 26. Kg2 {[%clk 0:02:31.1]} 26... Bc6 {[%clk
0:00:39.2]} 27. Bd3 {[%clk 0:02:29.8]} 27... Nf8 {[%clk 0:00:36.1]} 28. Qc2
{[%clk 0:02:25]} 28... Qxc2 {[%clk 0:00:35]} 29. Bxc2 {[%clk 0:02:25.9]} 29...
Nd7 {[%clk 0:00:35.2]} 30. Bd3 {[%clk 0:02:24.1]} 30... Nb6 {[%clk 0:00:35.1]}
31. Nd2 {[%clk 0:02:17.9]} 31... Kf8 {[%clk 0:00:32.4]} 32. g4 {[%clk
0:02:12.7]} 32... Ke7 {[%clk 0:00:26]} 33. Kg3 {[%clk 0:02:13.1]} 33... Be8
{[%clk 0:00:22.8]} 34. Nb1 {[%clk 0:02:13.3]} 34... Nc4 {[%clk 0:00:18.5]} 35.
Bxc4 {[%clk 0:02:13.4]} 35... dxc4 {[%clk 0:00:18.1]} 36. Nc3 {[%clk 0:02:14.3]}
36... Bc6 {[%clk 0:00:18.2]} 37. Kf4 {[%clk 0:02:08.8]} 37... Kd7 {[%clk
0:00:18]} 38. Ke3 {[%clk 0:02:09]} 38... Ke7 {[%clk 0:00:18.3]} 39. f3 {[%clk
0:02:09.5]} 39... Kd7 {[%clk 0:00:17.6]} 40. f4 {[%clk 0:02:09.9]} 40... Ke7
{[%clk 0:00:17.5]} 41. Kf2 {[%clk 0:02:10.4]} 41... Kd7 {[%clk 0:00:17.6]} 42.
Kg3 {[%clk 0:02:11]} 42... g6 {[%clk 0:00:16.8]} 43. f5 {[%clk 0:02:11.4]} 43...
gxf5 {[%clk 0:00:15.2]} 44. gxf5 {[%clk 0:02:12.3]} 44... Ke7 {[%clk 0:00:12.8]}
45. Kf4 {[%clk 0:02:13.2]} 45... Bd7 {[%clk 0:00:10.8]} 46. d5 {[%clk
0:02:12.9]} 46... exd5 {[%clk 0:00:10.4]} 47. Nxd5+ {[%clk 0:02:13.4]} 47... Kf8
{[%clk 0:00:10.5]} 48. Nc3 {[%clk 0:02:09.6]} 48... Bc6 {[%clk 0:00:10.2]} 49.
Ke3 {[%clk 0:02:09.6]} 49... Ke7 {[%clk 0:00:08.4]} 50. Kd4 {[%clk 0:02:09.7]}
50... Kd7 {[%clk 0:00:07.7]} 51. Kc5 {[%clk 0:02:03.1]} 51... Kc7 {[%clk
0:00:07.9]} 52. f6 {[%clk 0:01:56.9]} 52... Bd7 {[%clk 0:00:05.7]} 53. Nxb5+
{[%clk 0:01:21.2]} 53... Bxb5 {[%clk 0:00:06.6]} 54. Kxb5 {[%clk 0:01:22.1]}
54... c3 {[%clk 0:00:06.8]} 55. e6 {[%clk 0:01:22.8]} 55... fxe6 {[%clk
0:00:03.3]} 56. f7 {[%clk 0:01:23]} 56... c2 {[%clk 0:00:03.9]} 57. f8=Q {[%clk
0:01:23.6]} 57... c1=Q {[%clk 0:00:04.4]} 58. Qc5+ {[%clk 0:01:24.2]} 58...
Qxc5+ {[%clk 0:00:02.7]} 59. Kxc5 {[%clk 0:01:25.1]} 59... e5 {[%clk 0:00:02.1]}
60. Kd5 {[%clk 0:01:25.3]} 60... Kb6 {[%clk 0:00:02.4]} 61. Kxe5 {[%clk
0:01:25.2]} 1-0

[Event "*** Titled Tuesday Blitz"]
[Site "Chess.com"]
[Date "2020.11.03"]
[Round "11"]
[White "Fortitudine"]
[Black "niki_2003"]
[Result "1-0"]
[WhiteElo "2263"]
[BlackElo "1961"]
[TimeControl "180+1"]
[EndTime "12:10:19 PST"]
[Termination "Fortitudine won by resignation"]

1. c4 {[%clk 0:02:56.9]} 1... Nf6 {[%clk 0:02:58.8]} 2. g3 {[%clk 0:02:54.6]}
2... e6 {[%clk 0:02:57.8]} 3. Bg2 {[%clk 0:02:53.8]} 3... d5 {[%clk 0:02:57.6]}
4. Nf3 {[%clk 0:02:52.7]} 4... c5 {[%clk 0:02:57.4]} 5. O-O {[%clk 0:02:47.4]}
5... Be7 {[%clk 0:02:57.2]} 6. cxd5 {[%clk 0:02:40.3]} 6... exd5 {[%clk
0:02:56.1]} 7. d4 {[%clk 0:02:40.8]} 7... O-O {[%clk 0:02:52.6]} 8. a3 {[%clk
0:02:35.4]} 8... b6 {[%clk 0:02:51.2]} 9. dxc5 {[%clk 0:02:32.5]} 9... bxc5
{[%clk 0:02:50.3]} 10. Nc3 {[%clk 0:02:08.1]} 10... Bb7 {[%clk 0:02:46.7]} 11.
Ne5 {[%clk 0:01:56.4]} 11... Nbd7 {[%clk 0:02:30.6]} 12. Nxd5 {[%clk 0:01:17.6]}
12... Bxd5 {[%clk 0:02:02.9]} 13. Bxd5 {[%clk 0:01:18.5]} 13... Nxe5 {[%clk
0:02:03.5]} 14. Bxa8 {[%clk 0:01:12.8]} 14... Qxa8 {[%clk 0:02:03.9]} 15. Bf4
{[%clk 0:01:07.2]} 15... Nc4 {[%clk 0:01:55.4]} 16. Qb3 {[%clk 0:00:44.9]} 16...
Na5 {[%clk 0:01:41.7]} 17. Qb5 {[%clk 0:00:39.4]} 17... Nc6 {[%clk 0:01:37.4]}
18. Rfd1 {[%clk 0:00:15.5]} 18... Nd4 {[%clk 0:01:36.4]} 19. Qc4 {[%clk
0:00:15.7]} 19... Rb8 {[%clk 0:01:33.4]} 20. Rab1 {[%clk 0:00:12.9]} 20... Qc6
{[%clk 0:01:30.4]} 21. Be3 {[%clk 0:00:13]} 21... Nf5 {[%clk 0:01:28.9]} 22. Bg5
{[%clk 0:00:12.1]} 22... h6 {[%clk 0:01:25.8]} 23. Bxf6 {[%clk 0:00:12.4]} 23...
Bxf6 {[%clk 0:01:26]} 24. Qd5 {[%clk 0:00:12.8]} 24... Nd4 {[%clk 0:01:19.7]}
25. Qxc6 {[%clk 0:00:12.6]} 25... Nxc6 {[%clk 0:01:19.9]} 26. Rdc1 {[%clk
0:00:11.1]} 26... Bd4 {[%clk 0:01:10.2]} 27. e3 {[%clk 0:00:10.7]} 27... Bxb2
{[%clk 0:01:10.2]} 28. Rxc5 {[%clk 0:00:10.9]} 28... Ne7 {[%clk 0:00:43.5]} 29.
Rc7 {[%clk 0:00:02]} 29... Nd5 {[%clk 0:00:37.9]} 30. Rc2 {[%clk 0:00:01.8]}
30... Be5 {[%clk 0:00:36.1]} 31. Rxb8+ {[%clk 0:00:02.7]} 31... Bxb8 {[%clk
0:00:35.9]} 32. Rc8+ {[%clk 0:00:03.4]} 32... Kh7 {[%clk 0:00:33.2]} 33. Rxb8
{[%clk 0:00:03.9]} 33... Kg6 {[%clk 0:00:33.7]} 34. Rb7 {[%clk 0:00:03.8]} 34...
a5 {[%clk 0:00:31.6]} 35. Rb5 {[%clk 0:00:03.6]} 35... Kf6 {[%clk 0:00:29.4]}
36. Rxd5 {[%clk 0:00:03.4]} 1-0

[Event "*** Titled Tuesday Blitz"]
[Site "Chess.com"]
[Date "2020.11.03"]
[Round "11"]
[White "VladimirBugayev"]
[Black "annacramling"]
[Result "0-1"]
[WhiteElo "2262"]
[BlackElo "2006"]
[TimeControl "180+1"]
[EndTime "12:10:21 PST"]
[Termination "annacramling won by checkmate"]

1. e4 {[%clk 0:03:00.9]} 1... c5 {[%clk 0:02:59.3]} 2. Nc3 {[%clk 0:02:55.3]}
2... Nc6 {[%clk 0:02:58.1]} 3. Bb5 {[%clk 0:02:51.9]} 3... Nd4 {[%clk
0:02:57.6]} 4. Nf3 {[%clk 0:02:50.6]} 4... Nxb5 {[%clk 0:02:57.1]} 5. Nxb5
{[%clk 0:02:50.3]} 5... a6 {[%clk 0:02:57.3]} 6. Nc3 {[%clk 0:02:48.1]} 6... b5
{[%clk 0:02:56.3]} 7. O-O {[%clk 0:02:41.4]} 7... Bb7 {[%clk 0:02:55]} 8. Qe2
{[%clk 0:02:41]} 8... d6 {[%clk 0:02:51.1]} 9. d3 {[%clk 0:02:40]} 9... Nf6
{[%clk 0:02:49.8]} 10. a4 {[%clk 0:02:33.4]} 10... b4 {[%clk 0:02:49.4]} 11. Nb1
{[%clk 0:02:33.3]} 11... e6 {[%clk 0:02:49]} 12. b3 {[%clk 0:02:33.3]} 12... Be7
{[%clk 0:02:48.9]} 13. Bb2 {[%clk 0:02:33.8]} 13... O-O {[%clk 0:02:49]} 14.
Nbd2 {[%clk 0:02:34.3]} 14... d5 {[%clk 0:02:47.5]} 15. Ne5 {[%clk 0:02:20.6]}
15... Qc7 {[%clk 0:02:26.1]} 16. f4 {[%clk 0:02:18.3]} 16... Rfd8 {[%clk
0:02:19.2]} 17. Rad1 {[%clk 0:02:12.5]} 17... c4 {[%clk 0:01:35.1]} 18. dxc4
{[%clk 0:02:06.1]} 18... dxe4 {[%clk 0:01:28.2]} 19. Kh1 {[%clk 0:01:40.5]}
19... Bc5 {[%clk 0:01:12.3]} 20. Ng4 {[%clk 0:01:20]} 20... Nxg4 {[%clk
0:01:00.5]} 21. Qxg4 {[%clk 0:01:18.5]} 21... f5 {[%clk 0:00:56.4]} 22. Qg3
{[%clk 0:01:05.6]} 22... e3 {[%clk 0:00:53.8]} 23. Be5 {[%clk 0:00:58.8]} 23...
Qe7 {[%clk 0:00:40.7]} 24. Nf3 {[%clk 0:00:29.2]} 24... e2 {[%clk 0:00:31.1]}
25. Rxd8+ {[%clk 0:00:28.7]} 25... Rxd8 {[%clk 0:00:31.9]} 26. Re1 {[%clk
0:00:28.9]} 26... Rd1 {[%clk 0:00:32.4]} 27. h3 {[%clk 0:00:20.4]} 27... Bxf3
{[%clk 0:00:12]} 28. gxf3 {[%clk 0:00:20]} 28... Qd7 {[%clk 0:00:09.9]} 29. Kg2
{[%clk 0:00:19.4]} 29... Rxe1 {[%clk 0:00:06.8]} 30. Qxe1 {[%clk 0:00:18]} 30...
Qd1 {[%clk 0:00:06.7]} 31. Qg3 {[%clk 0:00:12.3]} 31... Qf1+ {[%clk 0:00:06.1]}
32. Kh2 {[%clk 0:00:11.9]} 32... g6 {[%clk 0:00:03.3]} 33. Qh4 {[%clk
0:00:09.5]} 33... Qg1# {[%clk 0:00:02.2]} 0-1

[Event "*** Titled Tuesday Blitz"]
[Site "Chess.com"]
[Date "2020.11.03"]
[Round "11"]
[White "maicolbenavides"]
[Black "Mikhal867"]
[Result "1-0"]
[WhiteElo "2238"]
[BlackElo "2332"]
[TimeControl "180+1"]
[EndTime "12:10:25 PST"]
[Termination "maicolbenavides won on time"]

1. e4 {[%clk 0:03:00.9]} 1... g6 {[%clk 0:00:55.6]} 2. d4 {[%clk 0:02:57.8]}
2... Bg7 {[%clk 0:00:54.7]} 3. Nf3 {[%clk 0:02:56.8]} 3... d6 {[%clk 0:00:54.3]}
4. c4 {[%clk 0:02:52.9]} 4... Nf6 {[%clk 0:00:53.3]} 5. Nc3 {[%clk 0:02:51.1]}
5... O-O {[%clk 0:00:52.7]} 6. Be2 {[%clk 0:02:48.4]} 6... e5 {[%clk 0:00:53.1]}
7. O-O {[%clk 0:02:42.6]} 7... Nc6 {[%clk 0:00:52.6]} 8. h3 {[%clk 0:02:39.2]}
8... a6 {[%clk 0:00:50.5]} 9. dxe5 {[%clk 0:02:34.5]} 9... dxe5 {[%clk 0:00:50]}
10. Bg5 {[%clk 0:02:34.4]} 10... Qe8 {[%clk 0:00:41.9]} 11. Nd5 {[%clk
0:02:22.1]} 11... Nxd5 {[%clk 0:00:41.4]} 12. exd5 {[%clk 0:02:10.6]} 12... Nd4
{[%clk 0:00:36.3]} 13. Nxd4 {[%clk 0:02:08.9]} 13... exd4 {[%clk 0:00:35.9]} 14.
Bd3 {[%clk 0:02:06]} 14... Qe5 {[%clk 0:00:31.9]} 15. Qd2 {[%clk 0:01:57.6]}
15... Qd6 {[%clk 0:00:27.8]} 16. Rfe1 {[%clk 0:01:54.9]} 16... Qb6 {[%clk
0:00:24.6]} 17. Be7 {[%clk 0:01:29.7]} 17... Re8 {[%clk 0:00:24.1]} 18. c5
{[%clk 0:01:29.8]} 18... Qa7 {[%clk 0:00:22.7]} 19. Qf4 {[%clk 0:01:27.8]} 19...
b6 {[%clk 0:00:20.8]} 20. c6 {[%clk 0:01:18]} 20... b5 {[%clk 0:00:20]} 21. a4
{[%clk 0:01:17.3]} 21... bxa4 {[%clk 0:00:19.3]} 22. Rxa4 {[%clk 0:01:17.5]}
22... Qb6 {[%clk 0:00:19.1]} 23. b4 {[%clk 0:01:16.3]} 23... Rb8 {[%clk
0:00:18]} 24. Kh2 {[%clk 0:01:14.1]} 24... Bf8 {[%clk 0:00:16.6]} 25. Bc5 {[%clk
0:01:12.7]} 25... Rxe1 {[%clk 0:00:16.1]} 26. Bxb6 {[%clk 0:01:11.7]} 26... Bd6
{[%clk 0:00:16.1]} 27. Qxd6 {[%clk 0:01:05.2]} 27... cxd6 {[%clk 0:00:16]} 28.
Bc7 {[%clk 0:00:59.1]} 28... Ra8 {[%clk 0:00:15.9]} 29. Bxd6 {[%clk 0:00:57.6]}
29... Rd1 {[%clk 0:00:15.8]} 30. Be2 {[%clk 0:00:47.4]} 30... Rd2 {[%clk
0:00:15.4]} 31. Bf3 {[%clk 0:00:25.6]} 31... d3 {[%clk 0:00:14.7]} 32. b5 {[%clk
0:00:24.5]} 32... Rb2 {[%clk 0:00:14.7]} 33. bxa6 {[%clk 0:00:23.6]} 33... Rxa6
{[%clk 0:00:13.7]} 34. Rxa6 {[%clk 0:00:20.5]} 34... Bxa6 {[%clk 0:00:12.9]} 35.
Be5 {[%clk 0:00:21]} 35... Rc2 {[%clk 0:00:12.2]} 36. d6 {[%clk 0:00:20.9]}
36... d2 {[%clk 0:00:11.9]} 37. d7 {[%clk 0:00:21.1]} 1-0

[Event "*** Titled Tuesday Blitz"]
[Site "Chess.com"]
[Date "2020.11.03"]
[Round "11"]
[White "Andreikka"]
[Black "vugarrasulov"]
[Result "0-1"]
[WhiteElo "2917"]
[BlackElo "2874"]
[TimeControl "180+1"]
[EndTime "12:10:27 PST"]
[Termination "vugarrasulov won by checkmate"]

1. e4 {[%clk 0:03:00.9]} 1... c5 {[%clk 0:03:00.9]} 2. Nf3 {[%clk 0:02:59.5]}
2... d6 {[%clk 0:03:01.1]} 3. d4 {[%clk 0:02:59.5]} 3... cxd4 {[%clk 0:03:02]}
4. Nxd4 {[%clk 0:02:59.7]} 4... Nf6 {[%clk 0:03:02.5]} 5. Nc3 {[%clk 0:02:59]}
5... Nc6 {[%clk 0:03:03.1]} 6. Bg5 {[%clk 0:02:57.8]} 6... e6 {[%clk 0:03:03.3]}
7. Qd3 {[%clk 0:02:54.8]} 7... a6 {[%clk 0:03:02.9]} 8. Nxc6 {[%clk 0:02:52.7]}
8... bxc6 {[%clk 0:03:02.8]} 9. O-O-O {[%clk 0:02:53.1]} 9... h6 {[%clk
0:02:52.2]} 10. Bh4 {[%clk 0:02:46.2]} 10... Qb6 {[%clk 0:02:39.5]} 11. e5
{[%clk 0:02:09.1]} 11... dxe5 {[%clk 0:02:33.3]} 12. Ne4 {[%clk 0:02:09.6]}
12... Be7 {[%clk 0:02:14.4]} 13. Nd6+ {[%clk 0:02:08]} 13... Kf8 {[%clk
0:02:10]} 14. Bg3 {[%clk 0:02:07.9]} 14... Qc5 {[%clk 0:01:34.2]} 15. Nxc8
{[%clk 0:01:59.3]} 15... Rxc8 {[%clk 0:01:35.1]} 16. Qxa6 {[%clk 0:01:59.4]}
16... Rb8 {[%clk 0:01:16.4]} 17. Qc4 {[%clk 0:01:46.2]} 17... Qa5 {[%clk
0:01:16.3]} 18. a3 {[%clk 0:01:46.6]} 18... h5 {[%clk 0:00:51.6]} 19. f3 {[%clk
0:01:44.2]} 19... h4 {[%clk 0:00:50.3]} 20. Be1 {[%clk 0:01:44]} 20... Qb6
{[%clk 0:00:49.9]} 21. Bc3 {[%clk 0:01:42.8]} 21... Rh5 {[%clk 0:00:44.2]} 22.
Qa6 {[%clk 0:01:31.4]} 22... Qxa6 {[%clk 0:00:36.9]} 23. Bxa6 {[%clk 0:01:30.9]}
23... Nd5 {[%clk 0:00:37.8]} 24. Bd2 {[%clk 0:01:29.9]} 24... Bg5 {[%clk
0:00:34.8]} 25. Rhe1 {[%clk 0:01:28]} 25... Bf4 {[%clk 0:00:32]} 26. Bxf4 {[%clk
0:01:13.5]} 26... exf4 {[%clk 0:00:32.9]} 27. Re4 {[%clk 0:01:13.3]} 27... Rg5
{[%clk 0:00:28.9]} 28. Rd2 {[%clk 0:01:10.2]} 28... e5 {[%clk 0:00:27.6]} 29.
Bc4 {[%clk 0:00:36.7]} 29... Ne3 {[%clk 0:00:23.5]} 30. Bb3 {[%clk 0:00:36.9]}
30... h3 {[%clk 0:00:20.5]} 31. g4 {[%clk 0:00:28.6]} 31... fxg3 {[%clk
0:00:21.4]} 32. hxg3 {[%clk 0:00:28.7]} 32... Rxg3 {[%clk 0:00:14.1]} 33. Kb1
{[%clk 0:00:29.1]} 33... Rg2 {[%clk 0:00:11.1]} 34. Rd7 {[%clk 0:00:29.2]} 34...
Nd5 {[%clk 0:00:10]} 35. Rh4 {[%clk 0:00:28.1]} 35... Kg8 {[%clk 0:00:06.2]} 36.
Rxh3 {[%clk 0:00:28.5]} 36... Rg5 {[%clk 0:00:03.4]} 37. a4 {[%clk 0:00:27.1]}
37... Rg1+ {[%clk 0:00:02.1]} 38. Ka2 {[%clk 0:00:21.8]} 38... Nb4+ {[%clk
0:00:03]} 39. Ka3 {[%clk 0:00:22.4]} 39... Ra1+ {[%clk 0:00:03]} 40. Ba2 {[%clk
0:00:23.2]} 40... Nxc2# {[%clk 0:00:03.4]} 0-1